fUSD/lending_fUSD_20250305
["ID","MTS","AMOUNT","RATE_DAILY","PERIOD"]
[355498453,1741205455362,-872.34,0.00011808,2]
[355498454,1741205455371,-500.0,0.00011808,2]
[355498455,1741205455380,-612.52,0.00011808,2]
[355498456,1741205455390,-1907.35,0.00011808,2]
[355498457,1741205455399,-5745.98,0.00011808,2]
[355498458,1741205455408,-1028.39,0.00011808,2]
[355498459,1741205455418,-6878.7,0.00011808,2]
[355498460,1741205455427,-500.0,0.00011808,2]
[355498461,1741205455437,-6936.41,0.00011808,2]
[355498462,1741205455447,-841.650641,0.00011808,2]
[355498463,1741205455456,-500.0,0.00011808,2]
[355498464,1741205455466,-1642.26,0.00011808,2]
[355498465,1741205455476,-932.81,0.00011808,2]
[355498466,1741205455485,-2575.51,0.00011808,2]
[355498467,1741205455495,-500.0,0.00011808,2]
[355498468,1741205455504,-693.83,0.00011808,2]
[355498469,1741205455514,-1627.56,0.00011808,2]
[355498470,1741205455524,-500.0,0.00011808,2]
[355498471,1741205455533,-782.79,0.00011808,2]
[355498472,1741205455542,-3676.77,0.00011808,2]
[355498473,1741205455552,-500.0,0.00011808,2]
[355498474,1741205455562,-1111.85,0.00011808,2]
[355498475,1741205455571,-2858.59,0.00011808,2]
[355498476,1741205455581,-1259.85,0.00011808,2]
[355498477,1741205455591,-1092.05,0.00011808,2]
[355498478,1741205455600,-632.35,0.00011808,2]
[355498479,1741205455610,-730.16,0.00011808,2]
[355498480,1741205455619,-500.0,0.00011808,2]
[355498481,1741205455629,-1116.48,0.00011808,2]
[355498482,1741205455638,-500.0,0.00011808,2]
[355498483,1741205455648,-849.42,0.00011808,2]
[355498484,1741205455658,-500.97,0.00011808,2]
[355498485,1741205455667,-500.0,0.00011808,2]
[355498486,1741205455677,-1088.52,0.00011808,2]
[355498487,1741205455687,-993.63,0.00011808,2]
[355498488,1741205455697,-778.35,0.00011808,2]
[355498489,1741205455706,-796.9,0.00011808,2]
[355498490,1741205455716,-510.87,0.00011808,2]
[355498491,1741205455726,-500.0,0.00011808,2]
[355498492,1741205455735,-604.2,0.00011808,2]
[355498493,1741205455744,-938.73,0.00011808,2]
[355498494,1741205455754,-3045.86,0.00011808,2]
[355498495,1741205455764,-1020.3,0.00011808,2]
[355498496,1741205455775,-500.0,0.00011808,2]
[355498497,1741205455785,-760.95,0.00011808,2]
[355498498,1741205455795,-845.95,0.00011808,2]
[355498499,1741205455805,-500.0,0.00011808,2]
[355498500,1741205455816,-1359.7,0.00011808,2]
[355498501,1741205455826,-1074.76,0.00011808,2]
[355498502,1741205455836,-500.0,0.00011808,2]
[355498503,1741205455846,-699.94,0.00011808,2]
[355498504,1741205455856,-500.0,0.00011808,2]
[355498505,1741205455866,-976.36,0.00011808,2]
[355498506,1741205455876,-500.0,0.00011808,2]
[355498507,1741205455885,-970.24,0.00011808,2]
[355498508,1741205455896,-1694.26,0.00011808,2]
[355498509,1741205455907,-1011.6,0.00011808,2]
[355498510,1741205455922,-874.5,0.00011808,2]
[355498511,1741205455934,-561.9,0.00011808,2]
[355498512,1741205455946,-2039.27,0.00011808,2]
[355498513,1741205455959,-539.09,0.00011808,2]
[355498514,1741205455969,-1026.8,0.00011808,2]
[355498515,1741205455981,-989.55,0.00011808,2]
[355498516,1741205455992,-500.0,0.00011809,2]
[355498517,1741205456003,-500.0,0.00011809,2]
[355498518,1741205456013,-154.651318,0.00011809,2]
[355498519,1741205456024,-500.0,0.00011809,2]
[355498520,1741205456035,-500.0,0.00011809,2]
[355498521,1741205456045,-500.0,0.00011809,2]
[355498522,1741205456055,-500.0,0.00011809,2]
[355498523,1741205456064,-500.0,0.00011809,2]
[355498524,1741205456074,-519.09,0.00011809,2]
[355498525,1741205456083,-500.0,0.00011809,2]
[355498526,1741205456093,-500.0,0.00011809,2]
[355498527,1741205456103,-500.0,0.00011809,2]
[355498528,1741205456114,-502.88,0.00011809,2]
[355498529,1741205456124,-500.0,0.00011809,2]
[355498530,1741205456135,-500.0,0.00011809,2]
[355498531,1741205456145,-500.0,0.00011809,2]
[355498532,1741205456154,-500.0,0.00011809,2]
[355498533,1741205456164,-500.0,0.00011809,2]
[355498534,1741205456174,-500.0,0.00011809,2]
[355498535,1741205456185,-500.0,0.00011809,2]
[355498536,1741205456194,-500.0,0.00011809,2]
[355498537,1741205456205,-500.0,0.00011809,2]
[355498538,1741205456218,-500.0,0.00011809,2]
[355498539,1741205456228,-500.0,0.00011809,2]
[355498540,1741205456239,-500.0,0.00011809,2]
[355498541,1741205456248,-500.0,0.00011809,2]
[355498542,1741205456260,-500.0,0.00011809,2]
[355498543,1741205456272,-516.2,0.00011809,2]
[355498544,1741205456282,-500.0,0.00011809,2]
[355498545,1741205456292,-544.34,0.00011809,2]
[355498546,1741205456302,-500.0,0.00011809,2]
[355498547,1741205456311,-500.0,0.00011809,2]
[355498548,1741205456321,-746.05,0.00011809,2]
[355498549,1741205456330,-500.0,0.00011809,2]
[355498550,1741205456340,-500.0,0.00011809,2]
[355498551,1741205456349,-636.69,0.00011809,2]
[355498552,1741205456359,-552.02,0.00011809,2]
[355498553,1741205456368,-500.0,0.00011809,2]
[355498554,1741205456379,-500.0,0.00011809,2]
[355498555,1741205456390,-500.0,0.00011809,2]
[355498556,1741205456401,-500.0,0.00011809,2]
[355498557,1741205456412,-500.0,0.00011809,2]
[355498558,1741205456422,-500.0,0.00011809,2]
[355498559,1741205456433,-151.0,0.00011809,2]
[355498560,1741205456443,-500.0,0.00011809,2]
[355498561,1741205456455,-500.0,0.00011809,2]
[355498562,1741205456464,-151.0,0.00011809,2]
[355498563,1741205456473,-500.0,0.00011809,2]
[355498564,1741205456483,-500.0,0.00011809,2]
[355498565,1741205456492,-500.0,0.00011809,2]
[355498566,1741205456501,-500.0,0.00011809,2]
[355498567,1741205456511,-874.96,0.00011809,2]
[355498568,1741205456520,-500.0,0.00011809,2]
[355498569,1741205456530,-652.99,0.00011809,2]
[355498570,1741205456539,-773.98,0.00011809,2]
[355498571,1741205456548,-1280.62,0.00011809,2]
[355498572,1741205456558,-500.0,0.00011809,2]
[355498573,1741205456567,-869.22,0.00011809,2]
[355498574,1741205456577,-500.0,0.00011809,2]
[355498575,1741205456586,-518.43,0.00011809,2]
[355498576,1741205456595,-500.0,0.00011809,2]
[355498577,1741205456605,-890.97,0.00011809,2]
[355498578,1741205456615,-744.45,0.00011809,2]
[355498579,1741205456624,-500.0,0.00011809,2]
[355498580,1741205456633,-803.34,0.00011809,2]
[355498581,1741205456642,-500.0,0.00011809,2]
[355498582,1741205456651,-667.83,0.00011809,2]
[355498583,1741205456661,-500.0,0.00011809,2]
[355498584,1741205456671,-500.0,0.00011809,2]
[355498585,1741205456680,-914.76,0.00011809,2]
[355498586,1741205456689,-500.0,0.00011809,2]
[355498587,1741205456699,-709.91,0.00011809,2]
[355498588,1741205456708,-565.64,0.00011809,2]
[355498589,1741205456717,-500.0,0.00011809,2]
[355498590,1741205456727,-662.57,0.00011809,2]
[355498591,1741205456736,-1061.8,0.00011809,2]
[355498592,1741205456745,-503.78,0.00011809,2]
[355498593,1741205456754,-836.1,0.00011809,2]
[355498594,1741205456764,-1411.23,0.00011809,2]
[355498595,1741205456773,-704.33,0.00011809,2]
[355498596,1741205456782,-1374.74,0.00011809,2]
[355498597,1741205456791,-630.87,0.00011809,2]
[355498598,1741205456801,-663.46,0.00011809,2]
[355498599,1741205456810,-882.89,0.00011809,2]
[355498600,1741205456820,-500.0,0.00011809,2]
[355498601,1741205456829,-355.52,0.00011809,2]
[355498602,1741205456838,-1264.68,0.00011809,2]
[355498603,1741205456848,-500.0,0.00011809,2]
[355498604,1741205456858,-1075.79,0.00011809,2]
[355498605,1741205456868,-500.0,0.00011809,2]
[355498606,1741205456877,-747.25,0.00011809,2]
[355498607,1741205456888,-500.0,0.00011809,2]
[355498608,1741205456897,-436.80861481,0.00011809,2]
[355498609,1741205456907,-500.0,0.00011809,2]
[355498610,1741205456917,-539.15,0.00011809,2]
[355498611,1741205456931,-500.0,0.00011809,2]
[355498612,1741205456940,-500.0,0.00011809,2]
[355498613,1741205456950,-784.27,0.00011809,2]
[355498614,1741205456959,-500.0,0.00011809,2]
[355498615,1741205456970,-500.0,0.00011809,2]
[355498616,1741205456979,-500.0,0.00011809,2]
[355498617,1741205456989,-785.71,0.00011809,2]
[355498618,1741205457000,-1773.97,0.00011809,2]
[355498619,1741205457009,-500.0,0.0001181,2]
[355498620,1741205457020,-151.0,0.0001181,2]
[355498621,1741205457030,-261.707832,0.0001181,2]
[355498622,1741205457039,-421.47259468,0.00011818,2]
[355498623,1741205457049,-8000.0,0.00011824,3]
[355498624,1741205457058,-223.0,0.0001185,2]
[355498625,1741205457069,-1216.22,0.00011852,2]
[355498626,1741205457079,-5909.6762268,0.00011873,2]
[355498627,1741205457089,-1015.86,0.000119,2]
[355498628,1741205457099,-1500.0,0.000119,2]
[355498629,1741205457108,-1500.0,0.000119,2]
[355498630,1741205457118,-1500.0,0.000119,2]
[355498631,1741205457128,-219.92367327,0.000119,2]
[355498632,1741205457137,-206.0,0.00011926,2]
[355498633,1741205457146,-206.0,0.00011926,2]
[355498634,1741205457155,-206.0,0.00011926,2]
[355498635,1741205457165,-206.0,0.00011926,2]
[355498636,1741205457174,-206.0,0.00011926,2]
[355498637,1741205457184,-206.0,0.00011926,2]
[355498638,1741205457193,-206.0,0.00011926,2]
[355498639,1741205457203,-206.0,0.00011926,2]
[355498640,1741205457212,-223.0,0.00011926,2]
[355498641,1741205457222,-223.0,0.00011926,2]
[355498642,1741205457231,-223.0,0.00011926,2]
[355498643,1741205457240,-223.0,0.00011926,2]
[355498644,1741205457249,-223.0,0.00011926,2]
[355498645,1741205457259,-223.0,0.00011926,2]
[355498646,1741205457268,-223.0,0.00011926,2]
[355498647,1741205457279,-223.0,0.00011926,2]
[355498648,1741205457290,-223.0,0.00011926,2]
[355498649,1741205457302,-223.0,0.00011926,2]
[355498650,1741205457311,-223.0,0.00011926,2]
[355498651,1741205457321,-223.0,0.00011926,2]
[355498652,1741205457330,-223.0,0.00011926,2]
[355498653,1741205457339,-223.0,0.00011926,2]
[355498654,1741205457349,-223.0,0.00011926,2]
[355498655,1741205457358,-223.0,0.00011926,2]
[355498656,1741205457368,-223.0,0.00011926,2]
[355498657,1741205457377,-264.0,0.00011926,2]
[355498658,1741205457387,-206.0,0.00011937,2]
[355498659,1741205457398,-206.0,0.00011937,2]
[355498660,1741205457407,-206.0,0.00011937,2]
[355498661,1741205457416,-206.0,0.00011937,2]
[355498662,1741205457426,-206.0,0.00011937,2]
[355498663,1741205457435,-206.0,0.00011937,2]
[355498664,1741205457444,-206.0,0.00011937,2]
[355498665,1741205457453,-206.0,0.00011937,2]
[355498666,1741205457463,-206.0,0.00011937,2]
[355498667,1741205457472,-206.0,0.00011937,2]
[355498668,1741205457481,-500.0,0.00011948,2]
[355498669,1741205457491,-1200.0,0.00011948,2]
[355498670,1741205457500,-170.04,0.0001196,2]
[355498671,1741205457509,-456.50744,0.0001196,2]
[355498672,1741205457519,-5909.6762268,0.00011991,2]
[355498673,1741205457528,-392.46547469,0.00012,2]
[355498674,1741205457538,-4503.29582999,0.00012,2]
[355498675,1741205457548,-6743.21491155,0.00012,2]
[355498676,1741205457560,-200.0,0.00012,3]
[355498677,1741205457569,-300.0,0.00012,2]
[355498678,1741205457578,-200.0,0.00012,2]
[355498679,1741205457587,-200.0,0.00012,3]
[355498680,1741205457596,-501.85985726,0.00012,5]
[355498681,1741205457605,-700.0,0.00012,3]
[355498682,1741205457614,-500.0,0.00012,5]
[355498683,1741205457624,-4999.999999,0.00012,2]
[355498684,1741205457633,-396.01190467,0.00012,2]
[355498685,1741205457642,-6906.08959782,0.00012,2]
[355498686,1741205457651,-288.15905501,0.00012,2]
[355498687,1741205457661,-1000.0,0.00012026,2]
[355498688,1741205457670,-500.0,0.00012027,2]
[355498689,1741205457679,-421.47259468,0.00012034,2]
[355498690,1741205457688,-20786.07,0.00012055,2]
[355498691,1741205457698,-314.57,0.00012073,2]
[355498692,1741205457708,-680.78,0.00012081,2]
[355498693,1741205457717,-578.4,0.00012081,2]
[355498694,1741205457726,-1098.23,0.00012081,2]
[355498695,1741205457736,-500.0,0.00012081,2]
[355498696,1741205457745,-500.0,0.00012081,2]
[355498697,1741205457754,-1010.02,0.00012081,2]
[355498698,1741205457764,-783.01,0.00012081,2]
[355498699,1741205457773,-500.0,0.00012081,2]
[355498700,1741205457782,-1300.94,0.00012081,2]
[355498701,1741205457791,-1390.41,0.00012081,2]
[355498702,1741205457800,-500.0,0.00012081,2]
[355498703,1741205457809,-726.01,0.00012081,2]
[355498704,1741205457819,-656.4,0.00012081,2]
[355498705,1741205457828,-2088.91,0.00012081,2]
[355498706,1741205457838,-1307.18,0.00012081,2]
[355498707,1741205457848,-1004.53,0.00012081,2]
[355498708,1741205457857,-500.0,0.00012081,2]
[355498709,1741205457867,-709.04,0.00012081,2]
[355498710,1741205457876,-500.0,0.00012081,2]
[355498711,1741205457886,-7271.24,0.00012081,2]
[355498712,1741205457895,-906.94,0.00012081,2]
[355498713,1741205457905,-676.71,0.00012081,2]
[355498714,1741205457916,-1813.03,0.00012081,2]
[355498715,1741205457930,-606.69,0.00012081,2]
[355498716,1741205457941,-760.04,0.00012081,2]
[355498717,1741205457952,-500.0,0.00012081,2]
[355498718,1741205457963,-500.0,0.00012081,2]
[355498719,1741205457972,-648.09,0.00012082,2]
[355498720,1741205457982,-896.73,0.00012082,2]
[355498721,1741205457992,-992.83,0.00012082,2]
[355498722,1741205458003,-561.56,0.00012082,2]
[355498723,1741205458013,-151.0,0.00012082,2]
[355498724,1741205458023,-626.43,0.00012082,2]
[355498725,1741205458033,-664.49,0.00012082,2]
[355498726,1741205458045,-500.0,0.00012082,2]
[355498727,1741205458057,-534.06,0.00012082,2]
[355498728,1741205458071,-661.64,0.00012082,2]
[355498729,1741205458084,-405.97343613,0.00012082,2]
[355498730,1741205458097,-500.0,0.00012082,2]
[355498731,1741205458107,-500.0,0.00012082,2]
[355498732,1741205458120,-500.0,0.00012082,2]
[355498733,1741205458133,-500.0,0.00012082,2]
[355498734,1741205458145,-500.0,0.00012082,2]
[355498735,1741205458157,-500.0,0.00012082,2]
[355498736,1741205458170,-652.98,0.00012082,2]
[355498737,1741205458182,-500.0,0.00012082,2]
[355498738,1741205458195,-500.0,0.00012082,2]
[355498739,1741205458208,-500.0,0.00012082,2]
[355498740,1741205458219,-529.11,0.00012082,2]
[355498741,1741205458231,-500.0,0.00012082,2]
[355498742,1741205458242,-500.0,0.00012082,2]
[355498743,1741205458252,-500.0,0.00012082,2]
[355498744,1741205458265,-872.41,0.00012082,2]
[355498745,1741205458278,-500.0,0.00012082,2]
[355498746,1741205458290,-633.63,0.00012082,2]
[355498747,1741205458302,-500.0,0.00012082,2]
[355498748,1741205458315,-609.29,0.00012082,2]
[355498749,1741205458327,-500.0,0.00012082,2]
[355498750,1741205458340,-500.0,0.00012082,2]
[355498751,1741205458353,-500.0,0.00012082,2]
[355498752,1741205458365,-1042.3,0.00012082,2]
[355498753,1741205458376,-500.0,0.00012082,2]
[355498754,1741205458390,-500.0,0.00012082,2]
[355498755,1741205458402,-819.01,0.00012082,2]
[355498756,1741205458414,-500.0,0.00012082,2]
[355498757,1741205458425,-1329.95,0.00012082,2]
[355498758,1741205458438,-500.0,0.00012082,2]
[355498759,1741205458449,-723.64,0.00012082,2]
[355498760,1741205458461,-1541.25,0.00012082,2]
[355498761,1741205458473,-500.0,0.00012082,2]
[355498762,1741205458487,-235.40008179,0.00012082,2]
[355498763,1741205458498,-856.39,0.00012082,2]
[355498764,1741205458509,-500.0,0.00012082,2]
[355498765,1741205458520,-2962.85,0.00012082,2]
[355498766,1741205458531,-558.21,0.00012082,2]
[355498767,1741205458541,-500.0,0.00012082,2]
[355498768,1741205458552,-500.0,0.00012082,2]
[355498769,1741205458562,-500.0,0.00012082,2]
[355498770,1741205458576,-674.44,0.00012082,2]
[355498771,1741205458590,-2436.47,0.00012082,2]
[355498772,1741205458601,-500.0,0.00012082,2]
[355498773,1741205458611,-500.0,0.00012082,2]
[355498774,1741205458621,-543.45,0.00012082,2]
[355498775,1741205458631,-724.69,0.00012082,2]
[355498776,1741205458642,-16591.23,0.00012082,2]
[355498777,1741205458655,-500.0,0.00012082,2]
[355498778,1741205458668,-500.0,0.00012082,2]
[355498779,1741205458679,-814.85,0.00012082,2]
[355498780,1741205458690,-500.0,0.00012082,2]
[355498781,1741205458701,-500.0,0.00012082,2]
[355498782,1741205458712,-768.97,0.00012082,2]
[355498783,1741205458723,-500.0,0.00012082,2]
[355498784,1741205458735,-601.79,0.00012082,2]
[355498785,1741205458745,-500.0,0.00012082,2]
[355498786,1741205458757,-500.0,0.00012082,2]
[355498787,1741205458767,-500.0,0.00012082,2]
[355498788,1741205458778,-3062.46,0.00012082,2]
[355498789,1741205458789,-1298.36,0.00012082,2]
[355498790,1741205458800,-546.53,0.00012082,2]
[355498791,1741205458811,-711.68,0.00012082,2]
[355498792,1741205458822,-500.0,0.00012082,2]
[355498793,1741205458833,-500.0,0.00012082,2]
[355498794,1741205458844,-977.45,0.00012082,2]
[355498795,1741205458854,-587.13,0.00012082,2]
[355498796,1741205458866,-500.0,0.00012082,2]
[355498797,1741205458877,-500.0,0.00012082,2]
[355498798,1741205458887,-740.69,0.00012082,2]
[355498799,1741205458898,-500.0,0.00012082,2]
[355498800,1741205458910,-568.43,0.00012082,2]
[355498801,1741205458926,-333.52357351,0.00012082,2]
[355498802,1741205458937,-2289.91,0.00012082,2]
[355498803,1741205458948,-793.8,0.00012082,2]
[355498804,1741205458959,-16980.96,0.00012082,2]
[355498805,1741205458970,-567.31,0.00012082,2]
[355498806,1741205458981,-500.0,0.00012082,2]
[355498807,1741205458992,-500.0,0.00012082,2]
[355498808,1741205459004,-626.95,0.00012082,2]
[355498809,1741205459015,-382.73963271,0.00012082,2]
[355498810,1741205459026,-749.53,0.00012082,2]
[355498811,1741205459037,-500.0,0.00012082,2]
[355498812,1741205459049,-765.83,0.00012082,2]
[355498813,1741205459060,-1988.28,0.00012082,2]
[355498814,1741205459070,-500.0,0.00012082,2]
[355498815,1741205459081,-500.0,0.00012082,2]
[355498816,1741205459092,-717.49,0.00012082,2]
[355498817,1741205459103,-606.13,0.00012082,2]
[355498818,1741205459114,-624.62,0.00012082,2]
[355498819,1741205459125,-883.11,0.00012082,2]
[355498820,1741205459135,-500.0,0.00012082,2]
[355498821,1741205459146,-1378.35,0.00012082,2]
[355498822,1741205459156,-1117.89,0.00012082,2]
[355498823,1741205459167,-725.28,0.00012082,2]
[355498824,1741205459178,-3175.89,0.00012082,2]
[355498825,1741205459189,-802.11,0.00012082,2]
[355498826,1741205459200,-607.89,0.00012082,2]
[355498827,1741205459210,-500.0,0.00012082,2]
[355498828,1741205459222,-1080.27,0.00012082,2]
[355498829,1741205459233,-500.0,0.00012082,2]
[355498830,1741205459244,-500.0,0.00012082,2]
[355498831,1741205459255,-3670.9,0.00012082,2]
[355498832,1741205459267,-1428.15,0.00012082,2]
[355498833,1741205459279,-970.94,0.00012082,2]
[355498834,1741205459291,-2257.33,0.00012082,2]
[355498835,1741205459303,-561.77,0.00012082,2]
[355498836,1741205459314,-500.0,0.00012082,2]
[355498837,1741205459325,-773.72,0.00012082,2]
[355498838,1741205459336,-2754.03,0.00012082,2]
[355498839,1741205459347,-500.0,0.00012082,2]
[355498840,1741205459358,-1986.3,0.00012082,2]
[355498841,1741205459370,-500.0,0.00012082,2]
[355498842,1741205459381,-548.21,0.00012082,2]
[355498843,1741205459392,-500.0,0.00012082,2]
[355498844,1741205459404,-1109.28,0.00012082,2]
[355498845,1741205459415,-599.55,0.00012082,2]
[355498846,1741205459426,-500.0,0.00012082,2]
[355498847,1741205459437,-801.3,0.00012082,2]
[355498848,1741205459448,-527.25,0.00012082,2]
[355498849,1741205459460,-500.0,0.00012082,2]
[355498850,1741205459471,-500.0,0.00012082,2]
[355498851,1741205459482,-1609.54,0.00012082,2]
[355498852,1741205459493,-500.0,0.00012082,2]
[355498853,1741205459504,-500.0,0.00012082,2]
[355498854,1741205459515,-1428.6,0.00012082,2]
[355498855,1741205459526,-5380.77,0.00012082,2]
[355498856,1741205459541,-821.99,0.00012082,2]
[355498857,1741205459552,-1272.62,0.00012082,2]
[355498858,1741205459563,-1234.64,0.00012082,2]
[355498859,1741205459574,-3674.78,0.00012082,2]
[355498860,1741205459585,-845.47,0.00012082,2]
[355498861,1741205459598,-1046.94,0.00012082,2]
[355498862,1741205459609,-714.38,0.00012082,2]
[355498863,1741205459620,-1025.38,0.00012082,2]
[355498864,1741205459632,-591.13,0.00012082,2]
[355498865,1741205459644,-500.0,0.00012082,2]
[355498866,1741205459656,-925.21,0.00012082,2]
[355498867,1741205459667,-673.63,0.00012082,2]
[355498868,1741205459679,-1235.82,0.00012082,2]
[355498869,1741205459691,-500.0,0.00012082,2]
[355498870,1741205459702,-675.94,0.00012082,2]
[355498871,1741205459714,-500.0,0.00012082,2]
[355498872,1741205459726,-2957.67,0.00012082,2]
[355498873,1741205459737,-3571.26,0.00012082,2]
[355498874,1741205459748,-500.0,0.00012082,2]
[355498875,1741205459759,-500.0,0.00012082,2]
[355498876,1741205459770,-662.374718,0.00012082,2]
[355498877,1741205459781,-872.34,0.00012082,2]
[355498878,1741205459792,-500.0,0.00012082,2]
[355498879,1741205459803,-612.52,0.00012082,2]
[355498880,1741205459815,-1907.35,0.00012082,2]
[355498881,1741205459825,-5745.98,0.00012082,2]
[355498882,1741205459836,-1028.39,0.00012082,2]
[355498883,1741205459847,-6878.7,0.00012082,2]
[355498884,1741205459858,-500.0,0.00012082,2]
[355498885,1741205459869,-6936.41,0.00012082,2]
[355498886,1741205459880,-841.650641,0.00012082,2]
[355498887,1741205459892,-500.0,0.00012082,2]
[355498888,1741205459903,-1642.26,0.00012082,2]
[355498889,1741205459916,-932.81,0.00012082,2]
[355498890,1741205459930,-2575.51,0.00012082,2]
[355498891,1741205459942,-500.0,0.00012082,2]
[355498892,1741205459953,-693.83,0.00012082,2]
[355498893,1741205459966,-1627.56,0.00012082,2]
[355498894,1741205459978,-782.79,0.00012082,2]
[355498895,1741205459989,-500.0,0.00012082,2]
[355498896,1741205460001,-3676.77,0.00012082,2]
[355498897,1741205460012,-500.0,0.00012082,2]
[355498898,1741205460024,-1111.85,0.00012082,2]
[355498899,1741205460035,-2858.59,0.00012082,2]
[355498900,1741205460046,-1259.85,0.00012082,2]
[355498901,1741205460057,-1092.05,0.00012082,2]
[355498902,1741205460069,-632.35,0.00012082,2]
[355498903,1741205460079,-730.16,0.00012082,2]
[355498904,1741205460090,-500.0,0.00012082,2]
[355498905,1741205460101,-1116.48,0.00012082,2]
[355498906,1741205460112,-500.0,0.00012082,2]
[355498907,1741205460123,-849.42,0.00012082,2]
[355498908,1741205460134,-500.97,0.00012082,2]
[355498909,1741205460145,-500.0,0.00012082,2]
[355498910,1741205460156,-1088.52,0.00012082,2]
[355498911,1741205460167,-993.63,0.00012082,2]
[355498912,1741205460179,-778.35,0.00012082,2]
[355498913,1741205460190,-796.9,0.00012082,2]
[355498914,1741205460201,-510.87,0.00012082,2]
[355498915,1741205460212,-500.0,0.00012082,2]
[355498916,1741205460223,-604.2,0.00012082,2]
[355498917,1741205460233,-938.73,0.00012082,2]
[355498918,1741205460244,-3045.86,0.00012082,2]
[355498919,1741205460257,-1020.3,0.00012082,2]
[355498920,1741205460267,-500.0,0.00012082,2]
[355498921,1741205460278,-845.95,0.00012082,2]
[355498922,1741205460289,-760.95,0.00012082,2]
[355498923,1741205460299,-500.0,0.00012082,2]
[355498924,1741205460309,-1359.7,0.00012082,2]
[355498925,1741205460320,-1074.76,0.00012082,2]
[355498926,1741205460330,-500.0,0.00012082,2]
[355498927,1741205460342,-699.94,0.00012082,2]
[355498928,1741205460354,-500.0,0.00012082,2]
[355498929,1741205460365,-976.36,0.00012082,2]
[355498930,1741205460377,-1773.97,0.00012082,2]
[355498931,1741205460389,-500.0,0.00012082,2]
[355498932,1741205460401,-970.24,0.00012082,2]
[355498933,1741205460414,-1694.26,0.00012082,2]
[355498934,1741205460426,-1011.6,0.00012082,2]
[355498935,1741205460436,-874.5,0.00012082,2]
[355498936,1741205460447,-561.9,0.00012082,2]
[355498937,1741205460457,-2039.27,0.00012082,2]
[355498938,1741205460469,-539.09,0.00012082,2]
[355498939,1741205460479,-1026.8,0.00012082,2]
[355498940,1741205460490,-500.0,0.00012083,2]
[355498941,1741205460500,-500.0,0.00012083,2]
[355498942,1741205460512,-500.0,0.00012083,2]
[355498943,1741205460524,-500.0,0.00012083,2]
[355498944,1741205460535,-500.0,0.00012083,2]
[355498945,1741205460547,-500.0,0.00012083,2]
[355498946,1741205460557,-500.0,0.00012083,2]
[355498947,1741205460567,-519.09,0.00012083,2]
[355498948,1741205460577,-500.0,0.00012083,2]
[355498949,1741205460588,-500.0,0.00012083,2]
[355498950,1741205460599,-500.0,0.00012083,2]
[355498951,1741205460609,-502.88,0.00012083,2]
[355498952,1741205460619,-500.0,0.00012083,2]